bitfinex/quotes_BTCUSD_20241101
["timestamp","ask_amount","ask_price","bid_price","bid_amount"]
[1730444064529,0.27890144,69337.0,69336.0,0.0998]
[1730444064742,0.52911593,69337.0,69336.0,0.0998]
[1730444064965,0.48617917,69337.0,69336.0,0.0998]
[1730444065376,0.52913237,69337.0,69336.0,0.0998]
[1730444065549,0.48617917,69337.0,69336.0,0.0998]
[1730444066372,0.52913442,69337.0,69336.0,0.0998]
[1730444066745,0.25021449,69337.0,69336.0,0.0998]
[1730444066980,0.25021449,69337.0,69336.0,0.102226]
[1730444067182,0.25021449,69337.0,69336.0,0.181426]
[1730444067661,0.25021449,69337.0,69336.0,0.18941867]
[1730444070019,0.39443749,69337.0,69336.0,0.18941867]
[1730444070367,0.49602782,69337.0,69336.0,0.0998]
[1730444072876,0.39443749,69337.0,69336.0,0.0998]
[1730444074868,0.25021449,69337.0,69336.0,0.0998]
[1730444075070,0.25021449,69337.0,69336.0,0.102226]
[1730444076111,0.25021449,69337.0,69336.0,0.103047]
[1730444076877,0.39443749,69337.0,69336.0,0.103047]
[1730444077119,0.46288874,69337.0,69336.0,0.11103967]
[1730444077281,0.39443749,69337.0,69336.0,0.103047]
[1730444078710,0.39443749,69337.0,69336.0,0.100621]
[1730444079272,0.39443749,69337.0,69336.0,0.103047]
[1730444079767,0.39443749,69337.0,69336.0,0.100621]
[1730444082887,0.39443749,69337.0,69336.0,0.000821]
[1730444083365,0.49173194,69337.0,69336.0,0.000821]
[1730444084436,0.39443749,69337.0,69336.0,0.000821]
[1730444086025,0.53289274,69337.0,69336.0,0.000821]
[1730444086237,0.61389274,69337.0,69336.0,0.000821]
[1730444088409,0.61646674,69337.0,69336.0,0.000821]
[1730444090612,0.53546674,69337.0,69336.0,0.000821]
[1730444090821,0.6482442,69337.0,69336.0,0.000821]
[1730444091040,0.6456702,69337.0,69336.0,0.000821]
[1730444091242,0.39443749,69337.0,69336.0,0.000821]
[1730444101289,0.43735824,69337.0,69336.0,0.000821]
[1730444101763,0.39443749,69337.0,69336.0,0.000821]
[1730444101980,0.43735824,69337.0,69336.0,0.000821]
[1730444102436,0.39443749,69337.0,69336.0,0.000821]
[1730444104225,0.55396703,69337.0,69336.0,0.000821]
[1730444104449,0.59707696,69337.0,69336.0,0.000821]
[1730444105447,0.50041475,69337.0,69336.0,0.000821]
[1730444106211,0.34088521,69337.0,69336.0,0.000821]
[1730444106411,0.40526634,69337.0,69336.0,0.000821]
[1730444107309,0.34088521,69337.0,69336.0,0.000821]
[1730444108461,0.49968061,69337.0,69336.0,0.000821]
[1730444108942,0.59634282,69337.0,69336.0,0.000821]
[1730444109370,0.83185987,69337.0,69336.0,0.000821]
[1730444109822,0.8321814,69337.0,69336.0,0.000821]
[1730444111137,0.63885698,69337.0,69336.0,0.000821]
[1730444111377,0.53128093,69337.0,69336.0,0.000821]
[1730444113114,0.72460535,69337.0,69336.0,0.000821]
[1730444114624,0.72460535,69337.0,69328.0,0.094015]
[1730444114625,0.244239,69329.0,69328.0,0.094015]
[1730444114823,0.51063786,69329.0,69328.0,0.094015]
[1730444114981,0.40308176,69329.0,69328.0,0.094015]
[1730444115142,0.51064193,69329.0,69328.0,0.094015]
[1730444115568,0.40308176,69329.0,69328.0,0.094015]
[1730444116694,0.40308176,69329.0,69328.0,0.000815]
[1730444116892,0.64079822,69329.0,69328.0,0.000815]
[1730444117480,0.53332261,69329.0,69328.0,0.000815]
[1730444117858,0.64079822,69329.0,69328.0,0.000815]
[1730444118232,0.53332261,69329.0,69328.0,0.000815]
[1730444118643,0.53332261,69329.0,69313.0,0.21769576]
[1730444118644,0.244258,69320.0,69319.0,0.0924]
[1730444118848,0.34092021,69320.0,69319.0,0.0924]
[1730444119084,0.38388703,69320.0,69319.0,0.0924]
[1730444119542,0.34092021,69320.0,69319.0,0.0924]
[1730444120758,0.43758242,69320.0,69319.0,0.0924]
[1730444120964,0.34092021,69320.0,69319.0,0.0924]
[1730444122391,0.37602937,69320.0,69319.0,0.093221]
[1730444123119,0.34092021,69320.0,69319.0,0.093221]
[1730444126319,0.43758242,69320.0,69319.0,0.093221]
[1730444126535,0.34092021,69320.0,69319.0,0.093221]
[1730444127596,0.43758242,69320.0,69319.0,0.093221]
[1730444127816,0.34092021,69320.0,69319.0,0.093221]
[1730444128352,0.43167054,69320.0,69319.0,0.093221]
[1730444129393,0.34092021,69320.0,69319.0,0.093221]
[1730444133932,0.43758242,69320.0,69319.0,0.093221]
[1730444134155,0.34092021,69320.0,69319.0,0.093221]
[1730444135477,0.34092021,69320.0,69319.0,0.093221]
[1730444136705,0.43700991,69320.0,69319.0,0.093221]
[1730444143289,0.1,69323.0,69322.0,0.002426]
[1730444143489,0.244254,69323.0,69322.0,0.085526]
[1730444143895,0.244254,69323.0,69322.0,0.0831]
[1730444144453,0.33604372,69323.0,69322.0,0.0831]
[1730444145949,0.33604372,69323.0,69321.0,0.0954]
[1730444145950,0.244254,69322.0,69321.0,0.0954]
[1730444151211,0.244254,69322.0,69321.0,0.097826]
[1730444151959,0.244254,69322.0,69321.0,0.0954]
[1730444152920,0.244254,69322.0,69321.0,0.097826]
[1730444153217,0.33604582,69322.0,69321.0,0.097826]
[1730444154582,0.244254,69322.0,69321.0,0.097826]
[1730444157808,0.244254,69322.0,69321.0,0.098647]
[1730444159492,0.2872987,69322.0,69321.0,0.098647]
[1730444161582,0.244254,69322.0,69321.0,0.098647]
[1730444165751,0.244254,69322.0,69321.0,0.096221]
[1730444166399,0.60697806,69322.0,69321.0,0.000821]
[1730444166614,0.75600611,69322.0,69321.0,0.000821]
[1730444166824,0.79486334,69322.0,69321.0,0.000821]
[1730444167021,0.79486334,69322.0,69319.0,0.000821]
[1730444167022,0.144258,69320.0,69319.0,0.000821]
[1730444167227,0.81948724,69320.0,69319.0,0.000821]
[1730444167438,0.93764447,69320.0,69319.0,0.000821]
[1730444167851,0.93964447,69320.0,69319.0,0.000821]
[1730444168104,0.93764447,69320.0,69319.0,0.000821]
[1730444168279,0.93764447,69320.0,69312.0,0.07815001]
[1730444168280,0.43759742,69313.0,69312.0,0.07815001]
[1730444168485,0.244285,69307.0,69303.0,0.002426]
[1730444168690,0.244285,69307.0,69302.0,0.002426]
[1730444168691,0.59842112,69307.0,69302.0,0.002426]
[1730444168911,0.68246869,69307.0,69302.0,0.002426]
[1730444169122,0.59642112,69307.0,69302.0,0.002426]
[1730444169359,0.59642112,69307.0,69300.0,0.0026099]
[1730444169360,0.50210524,69307.0,69300.0,0.0026099]
[1730444169537,0.43760942,69307.0,69300.0,0.0026099]
[1730444170349,0.5020803,69307.0,69300.0,0.0026099]
[1730444170549,0.43960942,69307.0,69300.0,0.0001839]
[1730444170756,0.57806467,69307.0,69300.0,0.0001839]
[1730444170966,0.1,69294.0,69287.0,0.092041]
[1730444171179,0.33764942,69288.0,69287.0,0.092041]
[1730444171400,0.50027896,69288.0,69287.0,0.092041]
[1730444171602,0.144333,69284.0,69278.0,0.21851176]
[1730444171815,0.24099521,69284.0,69278.0,0.000816]
[1730444172246,0.45645046,69284.0,69278.0,0.000816]
[1730444172457,0.45645046,69284.0,69275.0,0.000816]
[1730444172458,0.24935,69276.0,69275.0,0.000816]
[1730444172682,0.44160975,69276.0,69275.0,0.000816]
[1730444173166,0.63493417,69276.0,69275.0,0.000816]
[1730444174003,0.144368,69267.0,69266.0,0.000816]
[1730444174212,0.47948546,69267.0,69266.0,0.000816]
[1730444174546,0.53370364,69267.0,69266.0,0.000816]
[1730444174760,0.44990838,69267.0,69266.0,0.000816]
[1730444176918,0.59336363,69267.0,69266.0,0.000816]
[1730444177123,0.59336363,69267.0,69253.0,0.094]
[1730444177124,0.288746,69265.0,69253.0,0.089816]
[1730444177331,0.1,69266.0,69253.0,0.089816]
[1730444177332,0.15088039,69254.0,69253.0,0.089816]
[1730444177539,0.15088039,69258.0,69253.0,0.089816]
[1730444177745,0.244385,69259.0,69253.0,0.09270374]
[1730444178202,0.1,69259.0,69253.0,0.09270374]
[1730444178652,0.1,69259.0,69253.0,0.089816]
[1730444179064,0.1,69260.0,69253.0,0.089816]
[1730444179278,0.15088039,69259.0,69253.0,0.089816]
[1730444179744,0.1,69262.0,69254.0,0.00288764]
[1730444180175,0.14438,69262.0,69254.0,0.00288764]
[1730444180388,0.1,69261.0,69254.0,0.00288764]
[1730444180596,0.1,69261.0,69253.0,0.089816]
[1730444181087,0.1,69261.0,69253.0,0.234213]
[1730444181546,0.244379,69262.0,69253.0,0.089816]
[1730444181756,0.244379,69262.0,69253.0,0.090638]
[1730444181935,0.1,69260.0,69253.0,0.090638]
[1730444183031,0.1,69262.0,69254.0,0.13845525]
[1730444183251,0.1,69262.0,69254.0,0.14134281]
[1730444183427,0.001644,69267.0,69261.0,0.005]
[1730444183662,0.001644,69267.0,69262.0,0.13845525]
[1730444183663,0.21769576,69264.0,69262.0,0.13845525]
[1730444183863,0.001644,69267.0,69262.0,0.13845525]
[1730444184073,0.001644,69267.0,69263.0,0.144376]
[1730444184279,0.001644,69267.0,69264.0,0.13845525]
[1730444184915,0.001644,69267.0,69265.0,0.235872]
[1730444185119,0.001644,69267.0,69266.0,0.0804]
[1730444185336,0.001644,69267.0,69266.0,0.36822525]
[1730444185548,0.001644,69267.0,69266.0,0.39122525]
[1730444186434,0.001644,69267.0,69266.0,0.49022525]
[1730444187073,0.001644,69267.0,69266.0,0.46182525]
[1730444187940,0.001644,69267.0,69266.0,0.46382525]
[1730444188621,0.001644,69267.0,69266.0,0.46182525]
[1730444188830,0.001644,69267.0,69266.0,0.45782525]
[1730444189047,0.1,69286.0,69277.0,0.144347]
[1730444189249,0.21769576,69278.0,69277.0,0.28280225]
[1730444189422,0.1,69286.0,69277.0,0.13845525]
[1730444189642,0.21769576,69282.0,69277.0,0.13845525]
[1730444189780,0.29521639,69283.0,69277.0,0.13845525]
[1730444190404,0.15088039,69283.0,69277.0,0.13845525]
[1730444191047,0.15088039,69283.0,69274.0,0.094]
[1730444191048,0.33128039,69278.0,69257.0,0.005]
[1730444191247,0.288727,69270.0,69265.0,0.21769576]
[1730444191448,0.144371,69266.0,69258.0,0.35615101]
[1730444191576,0.15088039,69264.0,69258.0,0.13845525]
[1730444192013,0.1,69267.0,69258.0,0.13845525]
[1730444192222,0.15088039,69264.0,69258.0,0.13845525]
[1730444192553,0.15088039,69264.0,69257.0,0.005]
[1730444192554,0.144378,69263.0,69257.0,0.005]
[1730444193295,0.144373,69265.0,69257.0,0.005]
[1730444193509,0.144373,69265.0,69258.0,0.0914]
[1730444193714,0.1,69267.0,69258.0,0.0914]
[1730444193939,0.0804,69278.0,69259.0,0.00288735]
[1730444193940,0.1,69269.0,69259.0,0.00288735]
[1730444194145,0.1,69267.0,69262.0,0.144378]
[1730444194676,0.1,69267.0,69261.0,0.14438]
[1730444194900,0.1,69267.0,69261.0,0.28283525]
[1730444195252,0.1,69269.0,69261.0,0.28283525]
[1730444195847,0.144366,69269.0,69261.0,0.13845525]
[1730444196058,0.1,69268.0,69261.0,0.28283525]
[1730444196266,0.244367,69268.0,69261.0,0.13845525]
[1730444196476,0.1,69268.0,69261.0,0.13845525]
[1730444196888,0.1,69268.0,69261.0,0.28283425]
[1730444197349,0.1,69269.0,69261.0,0.28283425]
[1730444197892,0.21769576,69267.0,69261.0,0.28283425]
[1730444198097,0.15088039,69266.0,69258.0,0.0914]
[1730444198284,0.144373,69265.0,69258.0,0.0914]
[1730444198896,0.15088039,69266.0,69258.0,0.0914]
[1730444198897,0.29525239,69266.0,69258.0,0.0914]
[1730444199030,0.1,69269.0,69260.0,0.144383]
[1730444199228,0.288724,69271.0,69261.0,0.144379]
[1730444199229,0.1,69267.0,69261.0,0.144379]
[1730444201064,0.1,69267.0,69263.0,0.144376]
[1730444201272,0.1,69267.0,69262.0,0.144378]
[1730444201875,0.1,69267.0,69260.0,0.144382]
[1730444202683,0.1,69267.0,69261.0,0.14438]
[1730444202916,0.1,69267.0,69259.0,0.288768]
[1730444203092,0.1,69267.0,69262.0,0.144378]
[1730444203452,0.1,69272.0,69266.0,0.14437]
[1730444203669,0.1,69272.0,69268.0,0.144365]
[1730444203811,0.1,69274.0,69269.0,0.243263]
[1730444204237,0.15252439,69279.0,69269.0,0.0989]
[1730444204438,0.21769576,69276.0,69269.0,0.243263]
[1730444204890,0.15252439,69279.0,69271.0,0.14436]
[1730444204891,0.29686839,69279.0,69271.0,0.14436]
[1730444205063,0.36204176,69278.0,69271.0,0.14436]
[1730444205265,0.36204176,69278.0,69269.0,0.0989]
[1730444205266,0.144356,69273.0,69269.0,0.0989]
[1730444205467,0.288696,69277.0,69269.0,0.0989]
[1730444205468,0.15088039,69275.0,69269.0,0.0989]
[1730444205640,0.29523239,69275.0,69269.0,0.0989]
[1730444205841,0.36903482,69274.0,69269.0,0.0989]
[1730444206111,0.15088039,69271.0,69269.0,0.0989]
[1730444206323,0.29524139,69271.0,69269.0,0.0989]
[1730444207489,0.144362,69270.0,69269.0,0.0989]
[1730444207725,0.15088039,69271.0,69269.0,0.0989]
[1730444207726,0.29524139,69271.0,69269.0,0.0989]
[1730444209069,0.244354,69275.0,69269.0,0.0989]
[1730444209301,0.144354,69274.0,69269.0,0.0989]
[1730444209511,0.144356,69273.0,69269.0,0.0989]
[1730444209691,0.1,69275.0,69269.0,0.0989]
[1730444209931,0.144354,69274.0,69269.0,0.0989]
[1730444210114,0.15088039,69276.0,69269.0,0.0989]
[1730444210115,0.1,69277.0,69270.0,0.0754]
[1730444210541,0.1,69277.0,69270.0,0.21976]
[1730444210743,0.1,69277.0,69270.0,0.0754]
[1730444210943,0.1,69277.0,69271.0,0.144359]
[1730444211298,0.1,69277.0,69271.0,0.00288688]
[1730444211449,0.1,69277.0,69271.0,0.14724588]
[1730444211866,0.1,69277.0,69272.0,0.144356]
[1730444212104,0.1,69280.0,69271.0,0.00288688]
[1730444212237,0.1,69280.0,69270.0,0.0754]
[1730444212238,0.144351,69276.0,69270.0,0.0754]
[1730444212841,0.15088039,69272.0,69263.0,0.30815525]
[1730444213036,0.15088039,69266.0,69263.0,0.22855525]
[1730444213803,0.144369,69267.0,69263.0,0.22855525]
[1730444214005,0.433094,69269.0,69263.0,0.22855525]
[1730444214202,0.144369,69267.0,69263.0,0.22855525]
[1730444214407,0.144371,69266.0,69263.0,0.22855525]
[1730444214606,0.15088039,69267.0,69263.0,0.22855525]
[1730444214810,0.29525039,69267.0,69263.0,0.22855525]
[1730444215013,0.29525039,69267.0,69261.0,0.005]
[1730444215014,0.288746,69265.0,69260.0,0.000822]
[1730444215228,0.14438,69262.0,69260.0,0.000822]
[1730444215370,0.15088039,69263.0,69260.0,0.000822]
[1730444215610,0.29525739,69263.0,69260.0,0.000822]
[1730444215891,0.14438,69262.0,69260.0,0.000822]
[1730444216307,0.144376,69264.0,69260.0,0.000822]
[1730444216505,0.144372,69266.0,69260.0,0.000822]
[1730444216862,0.28873,69269.0,69260.0,0.000822]
[1730444217057,0.21769576,69268.0,69260.0,0.000822]
[1730444217556,0.144374,69265.0,69260.0,0.000822]
[1730444219114,0.144373,69265.0,69260.0,0.000822]
[1730444220304,0.288739,69267.0,69260.0,0.000822]
[1730444220756,0.144374,69265.0,69260.0,0.000822]
[1730444222284,0.00117383,69269.0,69261.0,0.31265525]
[1730444222593,0.144368,69268.0,69261.0,0.31265525]
[1730444222815,0.00117383,69269.0,69261.0,0.31265525]
[1730444223015,0.00117383,69269.0,69263.0,0.144377]
[1730444223016,0.10117383,69269.0,69263.0,0.144377]
[1730444223222,0.10117383,69269.0,69264.0,0.144374]
[1730444223425,0.10117383,69269.0,69264.0,0.14726021]
[1730444223599,0.10117383,69269.0,69264.0,0.144373]
[1730444224225,0.00117383,69269.0,69268.0,0.144366]
[1730444224499,0.00117383,69269.0,69266.0,0.288741]
[1730444224696,0.00117383,69269.0,69267.0,0.144367]
[1730444225097,0.00117383,69269.0,69268.0,0.00288702]
[1730444225523,0.00117383,69269.0,69268.0,0.28282125]
[1730444225728,0.00117383,69269.0,69268.0,0.38072125]
[1730444229037,0.00117383,69269.0,69268.0,0.28282125]
[1730444229197,0.00117383,69269.0,69265.0,0.144372]
[1730444229364,0.00117383,69269.0,69265.0,0.28282725]
[1730444229560,0.00117383,69269.0,69267.0,0.000822]
[1730444231867,0.144366,69268.0,69267.0,0.000822]
[1730444234055,0.14553783,69269.0,69267.0,0.000822]
[1730444234289,0.144366,69268.0,69267.0,0.000822]
[1730444235018,0.00117383,69269.0,69267.0,0.000822]
[1730444235431,0.144366,69268.0,69267.0,0.000822]
[1730444236977,0.23191642,69268.0,69267.0,0.000822]
[1730444237782,0.31111642,69268.0,69267.0,0.000822]
[1730444240884,0.41111642,69268.0,69267.0,0.000822]
[1730444241095,0.45411822,69268.0,69267.0,0.000822]
[1730444241295,0.41111642,69268.0,69267.0,0.000822]
[1730444241497,0.47561912,69268.0,69267.0,0.000822]
[1730444241923,0.47726312,69268.0,69267.0,0.000822]
[1730444242351,0.41276042,69268.0,69267.0,0.000822]
[1730444243169,0.49876307,69268.0,69267.0,0.000822]
[1730444243370,0.52026492,69268.0,69267.0,0.000822]
[1730444243573,0.41276042,69268.0,69267.0,0.000822]
[1730444244403,0.52022508,69268.0,69267.0,0.000822]
[1730444244602,0.41276042,69268.0,69267.0,0.000822]
[1730444245171,0.52022508,69268.0,69267.0,0.000822]
[1730444245360,0.41276042,69268.0,69267.0,0.000822]
[1730444246139,0.49869488,69268.0,69267.0,0.000822]
[1730444247402,0.41276042,69268.0,69267.0,0.000822]
[1730444248544,0.55121567,69268.0,69267.0,0.000822]
[1730444249207,0.63710113,69268.0,69267.0,0.000822]
[1730444250150,0.55121567,69268.0,69267.0,0.000822]
[1730444250376,0.61761958,69268.0,69267.0,0.000822]
[1730444250596,0.63910113,69268.0,69267.0,0.000822]
[1730444250748,0.63710113,69268.0,69267.0,0.000822]
[1730444251247,0.55621567,69268.0,69267.0,0.000822]
[1730444251447,0.64410113,69268.0,69267.0,0.000822]
[1730444251651,0.64208575,69268.0,69267.0,0.000822]
[1730444252234,0.55621567,69268.0,69267.0,0.000822]
[1730444252456,0.293753,69264.0,69251.0,0.000817]
[1730444252667,0.39527539,69254.0,69251.0,0.21851276]
[1730444252891,0.39527539,69254.0,69251.0,0.000817]
[1730444260791,0.39527539,69254.0,69253.0,0.095922]
[1730444260792,0.25088039,69254.0,69253.0,0.095922]
[1730444263536,0.39527539,69254.0,69253.0,0.000822]
[1730444263770,0.25088039,69254.0,69253.0,0.000822]
[1730444264679,0.27596843,69254.0,69253.0,0.096922]
[1730444264905,0.42036343,69254.0,69253.0,0.000822]
[1730444268687,0.57124382,69254.0,69253.0,0.000822]
[1730444268937,0.42036343,69254.0,69253.0,0.000822]
[1730444277355,0.42036343,69254.0,69253.0,0.00718394]
[1730444278650,0.36636596,69254.0,69253.0,0.00718394]
[1730444278857,0.26948304,69254.0,69253.0,0.00718394]
[1730444279060,0.26948304,69254.0,69253.0,0.000822]
[1730444282368,0.31247095,69254.0,69253.0,0.000822]
[1730444282696,0.31248055,69254.0,69253.0,0.000822]
[1730444283326,0.26948304,69254.0,69253.0,0.000822]
[1730444283585,0.3339793,69254.0,69253.0,0.000822]
[1730444284115,0.35547806,69254.0,69253.0,0.000822]
[1730444284310,0.34948304,69254.0,69253.0,0.000822]
[1730444284513,0.43547806,69254.0,69253.0,0.000822]
[1730444285252,0.34948304,69254.0,69253.0,0.000822]
[1730444287369,0.45697681,69254.0,69253.0,0.000822]
[1730444294211,0.49293829,69254.0,69253.0,0.000822]
[1730444294420,0.57736429,69254.0,69253.0,0.000822]
[1730444295179,0.45557991,69254.0,69253.0,0.000822]
[1730444302335,0.45057991,69254.0,69253.0,0.000822]
[1730444302620,0.53301354,69254.0,69253.0,0.000822]
[1730444302773,0.49037192,69254.0,69253.0,0.000822]
[1730444302978,0.46886889,69254.0,69253.0,0.000822]
[1730444303250,0.38285025,69254.0,69253.0,0.000822]
[1730444303454,0.43141067,69254.0,69253.0,0.000822]
[1730444304079,0.58571672,69254.0,69253.0,0.000822]
[1730444304289,0.52083624,69254.0,69253.0,0.000822]
[1730444304639,0.51583624,69254.0,69253.0,0.000822]
[1730444306049,0.52083624,69254.0,69253.0,0.000822]
[1730444306247,0.60863624,69254.0,69253.0,0.000822]
[1730444306430,0.64031613,69254.0,69253.0,0.000822]
[1730444306636,0.63831613,69254.0,69253.0,0.000822]
[1730444307691,0.64031613,69254.0,69253.0,0.000822]
[1730444312118,0.63831613,69254.0,69253.0,0.000822]
[1730444313586,0.59653175,69254.0,69253.0,0.000822]
[1730444314002,0.56485186,69254.0,69253.0,0.000822]
[1730444314420,0.50629144,69254.0,69253.0,0.000822]
[1730444314627,0.42549144,69254.0,69253.0,0.000822]
[1730444314836,0.38285025,69254.0,69253.0,0.000822]
[1730444315038,0.38785025,69254.0,69253.0,0.000822]
[1730444315491,0.49035394,69254.0,69253.0,0.000822]
[1730444315694,0.61752202,69254.0,69253.0,0.000822]
[1730444316522,0.51501833,69254.0,69253.0,0.000822]
[1730444316738,0.51481833,69254.0,69253.0,0.000822]
[1730444317141,0.38765025,69254.0,69253.0,0.000822]
[1730444320890,0.38265025,69254.0,69253.0,0.000822]
[1730444324709,0.4252894,69254.0,69253.0,0.000822]
[1730444328954,0.5544965,69254.0,69253.0,0.000822]
[1730444329430,0.4252894,69254.0,69253.0,0.000822]
[1730444329608,0.56067546,69254.0,69253.0,0.000822]
[1730444331099,0.56567546,69254.0,69253.0,0.000822]
[1730444331309,0.56767546,69254.0,69253.0,0.000822]
[1730444331506,0.56567546,69254.0,69253.0,0.000822]
[1730444331708,0.56315581,69254.0,69253.0,0.000822]
[1730444333774,0.56815581,69254.0,69253.0,0.000822]
[1730444334196,0.56979781,69254.0,69253.0,0.000822]
[1730444337020,0.61158219,69254.0,69253.0,0.000822]
[1730444338678,0.61358219,69254.0,69253.0,0.000822]
[1730444339109,0.60858219,69254.0,69253.0,0.000822]
[1730444339316,0.61158219,69254.0,69253.0,0.000822]
[1730444340708,0.75894136,69254.0,69253.0,0.000822]
[1730444341537,0.75892596,69254.0,69253.0,0.000822]
[1730444341751,0.61358219,69254.0,69253.0,0.000822]
[1730444341949,0.1514,69252.0,69251.0,0.000817]
[1730444342161,0.70005608,69252.0,69251.0,0.000817]
[1730444342410,0.89382192,69252.0,69251.0,0.000817]
[1730444342583,0.796939,69252.0,69251.0,0.000817]
[1730444342794,0.89382192,69252.0,69251.0,0.000817]
[1730444343208,0.75315462,69252.0,69251.0,0.000817]
[1730444344275,0.75515462,69252.0,69251.0,0.000817]
[1730444344483,0.75315462,69252.0,69251.0,0.000817]
[1730444345102,0.67085462,69252.0,69251.0,0.000817]
[1730444346828,0.53237732,69252.0,69251.0,0.000817]
[1730444348455,0.5413769,69252.0,69251.0,0.000817]
[1730444349289,0.54255073,69252.0,69251.0,0.000817]
[1730444351691,0.6717027,69252.0,69251.0,0.000817]
[1730444352139,0.53255073,69252.0,69251.0,0.097117]
[1730444354895,0.48991158,69252.0,69251.0,0.097117]
[1730444355116,0.60812761,69252.0,69251.0,0.097117]
[1730444355321,0.71576737,69252.0,69251.0,0.097117]
[1730444355522,0.59755134,69252.0,69251.0,0.097117]
[1730444356146,0.48991158,69252.0,69251.0,0.097117]
[1730444356787,0.59757543,69252.0,69251.0,0.097117]
[1730444357204,0.48991158,69252.0,69251.0,0.097117]
[1730444357439,0.61992883,69252.0,69251.0,0.097117]
[1730444359114,0.48991158,69252.0,69251.0,0.097117]
[1730444359340,0.59758061,69252.0,69251.0,0.097117]
[1730444359562,0.48991158,69252.0,69251.0,0.097117]
[1730444360052,0.59758126,69252.0,69251.0,0.097117]
[1730444360496,0.48991158,69252.0,69251.0,0.097117]
[1730444361161,0.72760451,69252.0,69251.0,0.097117]
[1730444361626,0.48991158,69252.0,69251.0,0.097117]
[1730444362513,0.59758208,69252.0,69251.0,0.097117]
[1730444362761,0.48873775,69252.0,69251.0,0.000817]
[1730444364133,0.43642163,69252.0,69251.0,0.097917]
[1730444364348,0.43642151,69252.0,69251.0,0.097917]
[1730444364767,0.5584417,69252.0,69251.0,0.097917]
[1730444365437,0.47230269,69252.0,69251.0,0.097917]
[1730444366865,0.5799742,69252.0,69251.0,0.097917]
[1730444367074,0.65254232,69252.0,69251.0,0.000817]
[1730444369590,0.61075794,69252.0,69251.0,0.000817]
[1730444371313,0.65342192,69252.0,69251.0,0.000817]
[1730444375146,0.61075794,69252.0,69251.0,0.000817]
[1730444375356,0.65342191,69252.0,69251.0,0.000817]
[1730444382526,0.244402,69251.0,69250.0,0.99964317]
[1730444382732,0.42552122,69251.0,69250.0,0.99964317]
[1730444384417,0.56399852,69251.0,69250.0,0.99964317]
[1730444386218,0.66088144,69251.0,69250.0,0.99964317]
[1730444386765,0.56399852,69251.0,69250.0,0.99964317]
[1730444390654,0.70266582,69251.0,69250.0,0.55249062]
[1730444390835,0.74440185,69251.0,69250.0,0.55249062]
[1730444391030,0.74440185,69251.0,69250.0,0.55331162]
[1730444391506,0.74604385,69251.0,69250.0,0.55331162]
[1730444391841,0.70425947,69251.0,69250.0,0.55331162]
[1730444392043,0.52797655,69251.0,69250.0,0.55331162]
[1730444394185,0.52297655,69251.0,69250.0,0.55331162]
[1730444394398,0.38449925,69251.0,69250.0,0.64931162]
[1730444394824,0.47068744,69251.0,69250.0,0.64931162]
[1730444395603,0.38449925,69251.0,69250.0,0.64931162]
[1730444396490,0.246044,69251.0,69250.0,0.64931162]
[1730444398074,0.3845213,69251.0,69250.0,0.64931162]
[1730444398271,0.246044,69251.0,69250.0,0.64931162]
[1730444398681,0.38449925,69251.0,69250.0,0.64931162]
[1730444398880,0.38449925,69251.0,69250.0,0.55331162]
[1730444398881,0.52816655,69251.0,69250.0,0.55331162]
[1730444399130,0.43128363,69251.0,69250.0,0.55331162]
[1730444399247,0.38949925,69251.0,69250.0,0.55331162]
[1730444399443,0.52797655,69251.0,69250.0,0.55331162]
[1730444400863,0.57067704,69251.0,69250.0,0.55331162]
[1730444401075,0.56567704,69251.0,69250.0,0.55331162]
[1730444418616,0.56567704,69251.0,69237.0,5e-07]
[1730444418617,0.327529,69238.0,69237.0,5e-07]
[1730444418830,0.88685375,69238.0,69237.0,5e-07]
[1730444419030,0.56286717,69238.0,69237.0,5e-07]
[1730444419233,0.38288425,69238.0,69237.0,5e-07]
[1730444420514,0.4689832,69238.0,69237.0,5e-07]
[1730444421485,0.38288425,69238.0,69237.0,5e-07]
[1730444422488,0.39174824,69238.0,69237.0,5e-07]
[1730444422673,0.53022554,69238.0,69237.0,5e-07]
[1730444423084,0.39174824,69238.0,69237.0,5e-07]
[1730444423313,0.39274824,69238.0,69237.0,5e-07]
[1730444423497,0.245429,69238.0,69237.0,5e-07]
[1730444423708,0.245429,69238.0,69237.0,0.1724005]
[1730444424141,0.246429,69238.0,69237.0,0.1724005]
[1730444424370,0.30896965,69238.0,69237.0,0.1724005]
[1730444424636,0.30696965,69238.0,69237.0,0.1724005]
[1730444425187,0.244429,69238.0,69237.0,0.1724005]
[1730444425842,0.38288425,69238.0,69237.0,0.0900005]
[1730444427721,0.38288425,69238.0,69237.0,0.0908215]
[1730444429021,0.244429,69238.0,69237.0,0.0908215]
[1730444430492,0.28747024,69238.0,69237.0,0.0908215]
[1730444430902,0.244429,69238.0,69237.0,0.0908215]
[1730444431142,0.28747024,69238.0,69237.0,0.0908215]
[1730444431457,0.42594754,69238.0,69237.0,0.0908215]
[1730444431776,0.28747024,69238.0,69237.0,0.0908215]
[1730444434312,0.244429,69238.0,69237.0,0.1669215]
[1730444436014,0.33187924,69243.0,69237.0,0.1669215]
[1730444436015,0.288842,69242.0,69238.0,0.096]
[1730444436214,0.36212276,69239.0,69238.0,0.096]
[1730444436363,0.144427,69239.0,69238.0,0.096]
[1730444436568,0.24130992,69239.0,69238.0,0.096]
[1730444436892,0.24130992,69239.0,69238.0,0.1717]
[1730444440818,0.144427,69239.0,69238.0,0.1717]
[1730444441457,0.144427,69239.0,69238.0,0.096]
[1730444442537,0.144427,69239.0,69238.0,0.178]
[1730444447439,0.144427,69239.0,69237.0,0.0008215]
[1730444447440,0.325229,69238.0,69237.0,0.0008215]
[1730444447604,0.46368425,69238.0,69237.0,0.0008215]
[1730444447819,0.83915656,69238.0,69237.0,0.0008215]
[1730444448032,0.70974379,69238.0,69237.0,0.0008215]
[1730444448770,0.71878169,69238.0,69237.0,0.0008215]
[1730444449410,0.61119945,69238.0,69237.0,0.0008215]
[1730444450008,0.60619945,69238.0,69237.0,0.0008215]
[1730444450216,0.59716155,69238.0,69237.0,0.0008215]
[1730444450616,0.60216155,69238.0,69237.0,0.0008215]